Cogmind - Beta 17 @@@ ROGUE MODE // 2026.07.15 @ 06:19:03 // Winter2019/RPGLIKE Player: Gallgagger Result: Self-destructed Performance ------------- Evolutions (1) 500 Regions Visited (5) 1000 Robots Destroyed (0) 0 Value Destroyed (0) 0 Prototype IDs (2) 40 Alien Tech Used (0) 0 Bonus (500) 500 TOTAL SCORE: 2040 Bonus ------- Pacifist 200 Aligned with FarCom 300 Cogmind --------- Core Integrity 426/600 Matter 280/300 Energy 100/100 System Corruption 2% Temperature Cool (27) Movement Flying (50) Location -8/Mines Parts ------- > --- POWER (1) -------- (None) > --- PROPULSION (4) --- Flying Fortress v7 > --- UTILITY (1) ------ Structural Scanner > --- WEAPON (2) ------- AWS/Gauss > --- INVENTORY (0) ---- (None) Peak State ------------ > --- POWER ------------ (None) > --- PROPULSION ------- Flying Fortress v7 > --- UTILITY ---------- Structural Scanner > --- WEAPON ----------- AWS/Gauss > --- INVENTORY -------- (None) [Rating: 49] Favorites ----------- Power None Propulsion Flying Fortress v7 Flight Unit Flying Fortress v7 Utility Structural Scanner Device Structural Scanner Weapon Light Assault Rifle Ballistic Gun Light Assault Rifle Build | -11 -10 -9 -9 -9 -8 ------- Run | Yrd Mat Mat Min Exi Min Slots Evolved 4 | . . . . 4 . Power . | . . . . . . Propulsion 3 | . . . . 3 . Utility . | . . . . . . Weapon 1 | . . . . 1 . Parts Attached 4 | . 1 . 1 2 . Power . | . . . . . . Engine . | . . . . . . Core . | . . . . . . Reactor . | . . . . . . Propulsion 1 | . . . . 1 . Treads . | . . . . . . Leg . | . . . . . . Wheel . | . . . . . . Hover . | . . . . . . Flight 1 | . . . . 1 . Utility 1 | . 1 . . . . Device 1 | . 1 . . . . Storage . | . . . . . . Processor . | . . . . . . Hackware . | . . . . . . Protection . | . . . . . . Artifact . | . . . . . . Weapon 2 | . . . 1 1 . Energy Gun . | . . . . . . Energy Cannon . | . . . . . . Ballistic Gun 2 | . . . 1 1 . Ballistic Cannon . | . . . . . . Launcher . | . . . . . . Special Weapon . | . . . . . . Impact Weapon . | . . . . . . Slashing Weapon . | . . . . . . Piercing Weapon . | . . . . . . Special Melee Weapon . | . . . . . . Unidentified Prototypes 2 | . . . . 2 . Parts Lost . | . . . . . . Power . | . . . . . . Propulsion . | . . . . . . Utility . | . . . . . . Weapon . | . . . . . . Highest Loss Streak . | . . . . . . To Critical Strikes . | . . . . . . Average Backups . | . . . . . . Power . | . . . . . . Propulsion . | . . . . . . Utility . | . . . . . . Weapon . | . . . . . . Tool/Special . | . . . . . . Unused Backups . | . . . . . . Power . | . . . . . . Propulsion . | . . . . . . Utility . | . . . . . . Weapon . | . . . . . . Tool/Special . | . . . . . . Average Slot Usage (%) 32 | . . 25 39 44 37 Flight 1 | . . . . 5 12 Device 20 | . . 25 25 19 12 Ballistic Gun 11 | . . . 14 19 12 Peak Build Rating 49 | . 1 1 2 49 49 Average Rating 6 | . . 1 1 24 49 On Entrance 8 | . . 1 1 2 49 Avg Prop Armor Cover (%) . | . . . . . . Naked Turns 69 | . 69 . . . . Heaviest Build 11 | . 1 1 2 11 11 Greatest Support 50 | 3 3 3 3 50 50 Greatest Overweight (x) . | . . . . . . Average Overweight (x) . | . . . . . . Largest Inventory Capacity . | . . . . . . Average Capacity . | . . . . . . Most Carried . | . . . . . . Average Carried . | . . . . . . Final Capacity . | . . . . . . Final Carried . | . . . . . . Class Distribution -------------------- 100% | Mutant Dominant Class ---------------- Mutant | -10/Materials Mutant | -9/Materials Mutant | -9/Mines Mutant | -9/Exiles Mutant | -8/Mines Resources | -11 -10 -9 -9 -9 -8 ----------- Run | Yrd Mat Mat Min Exi Min Matter Collected 218 | . . . 218 . . Remotely . | . . . . . . Salvage Created . | . . . . . . Parts . | . . . . . . Haulers Intercepted . | . . . . . . Recyclers Shooed . | . . . . . . Parts Field Recycled . | . . . . . . Retrieved Matter . | . . . . . . Parts Self-Destructed . | . . . . . . Prevented . | . . . . . . Parts Restored . | . . . . . . Kills | -11 -10 -9 -9 -9 -8 ------- Run | Yrd Mat Mat Min Exi Min Combat Hostiles Destroyed . | . . . . . . Classes Destroyed . | . . . . . . Best Kill Streak . | . . . . . . Combat Bots Only . | . . . . . . Max Kills in Single Turn . | . . . . . . Gunslinging . | . . . . . . Exploded . | . . . . . . Melee . | . . . . . . Uniques/NPCs Destroyed . | . . . . . . Combat | -11 -10 -9 -9 -9 -8 -------- Run | Yrd Mat Mat Min Exi Min Hostile Shots Fired 28 | . 7 16 2 . 3 Missed 12 | . 5 7 . . . Hits 16 | . 2 9 2 . 3 Projectile 16 | . 2 9 2 . 3 AOE 1 | . . . 1 . . Damage Taken 225 | . 22 104 20 30 49 Core 204 | . 22 101 19 24 38 Absorbed by Shields . | . . . . . . Redirected to Core 71 | . . 8 1 24 38 Core Remaining (%) 98 | 100 96 . . . . Volleys Fired 2 | . . . 2 . . Largest 1 | . . . 1 . . Hottest 20 | . . . 20 . . Shots Fired 3 | . . . 2 . 1 Gun 3 | . . . 2 . 1 Cannon . | . . . . . . Launcher . | . . . . . . Special . | . . . . . . Kinetic 3 | . . . 2 . 1 Thermal . | . . . . . . Explosive . | . . . . . . Electromagnetic . | . . . . . . Robot Hit Streak 3 | . . . 2 . 3 Robot Miss Streak . | . . . . . . Penetration Max . | . . . . . . Secondary Targets . | . . . . . . Autonomous 1 | . . . . . 1 Shots Hit Robots 3 | . . . 2 . 1 Core Hits 1 | . . . 1 . . Critical Kills . | . . . . . . Critical Parts Destroyed . | . . . . . . Critical Strikes . | . . . . . . Melee Attacks . | . . . . . . Impact . | . . . . . . Slashing . | . . . . . . Piercing . | . . . . . . Sneak Attacks . | . . . . . . Combat Hostiles . | . . . . . . Follow-up Attacks . | . . . . . . Damage Inflicted 85 | . . . 22 30 33 Guns 51 | . . . 18 . 33 Cannons . | . . . . . . Explosions . | . . . . . . Melee . | . . . . . . Ramming 34 | . . . 4 30 . Kinetic 51 | . . . 18 . 33 Thermal . | . . . . . . Explosive . | . . . . . . Electromagnetic . | . . . . . . Impact . | . . . . . . Slashing . | . . . . . . Piercing . | . . . . . . Highest Corruption 2 | . . . . 2 2 Average Corruption 2 | . . . . 2 2 Corruption Purged . | . . . . . . Corruption Blocked . | . . . . . . Overload Shots . | . . . . . . Overflow Damage . | . . . . . . Projectiles . | . . . . . . Explosions . | . . . . . . Melee . | . . . . . . Knockbacks . | . . . . . . Impact . | . . . . . . Kinetic . | . . . . . . Secondary . | . . . . . . Self-Inflicted Damage 32 | . . . 2 30 . Shots . | . . . . . . Rammed 1 | . . . 1 . . Targets Rammed 1 | . . . 1 . . Kicked . | . . . . . . Crushed . | . . . . . . Highest Temperature . | . . . . . . Average Temperature . | . . . . . . Received Heat Transfer 87 | . 12 48 . . 27 Siege Activations . | . . . . . . Martial Activations . | . . . . . . Shielding Activations . | . . . . . . Robots Disrupted . | . . . . . . Combat Hostiles . | . . . . . . Robots Corrupted . | . . . . . . Combat Hostiles . | . . . . . . Parts Fried . | . . . . . . Impact Corruptions . | . . . . . . Robots Melted . | . . . . . . Combat Hostiles . | . . . . . . Parts Melted . | . . . . . . Heat Transferred . | . . . . . . Parts Sabotaged . | . . . . . . Parts Stolen . | . . . . . . Parts Stripped . | . . . . . . Power Chain Reactions . | . . . . . . Alert | -11 -10 -9 -9 -9 -8 ------- Run | Yrd Mat Mat Min Exi Min Maximum Alert Level . | . . . . . . Low Security (%) 100 | 100 100 100 100 . 100 Level 1 . | . . . . . . Level 2 . | . . . . . . Level 3 . | . . . . . . Level 4 . | . . . . . . Level 5 . | . . . . . . High Security . | . . . . . . Max Security . | . . . . . . Peak Influence 45 | . . 45 20 . . Initial 17 | . . . 17 . . Average 4 | . . 5 5 . . Influence Increases 98 | . . 53 45 . . Successful Hack 8 | . . 8 . . . Lose Combat Pursuer 90 | . . 45 45 . . Influence Decreases 98 | . . 8 90 . . Entered New Map 28 | . . . 28 . . Time Decay 70 | . . 8 62 . . Squads Dispatched 4 | . 2 2 . . . Investigation 1 | . . 1 . . . Extermination . | . . . . . . Reinforcement 3 | . 2 1 . . . Assault . | . . . . . . Garrison . | . . . . . . Intercept . | . . . . . . Searches Triggered . | . . . . . . Construction Impeded . | . . . . . . Haulers Reinforced . | . . . . . . Active Scanning Responses . | . . . . . . Cargo Convoy Interrupts . | . . . . . . Stealth | -11 -10 -9 -9 -9 -8 --------- Run | Yrd Mat Mat Min Exi Min Distress Signals . | . . . . . . Communications Jammed . | . . . . . . Distress Signals . | . . . . . . Times Spotted 29 | . 4 14 8 . 3 Peak Tracking Total 10 | . 3 10 3 9 3 Tactical Retreats 4 | . . 1 3 . . Traps | -11 -10 -9 -9 -9 -8 ------- Run | Yrd Mat Mat Min Exi Min Traps Triggered . | . . . . . . Indirectly . | . . . . . . Trap Hack Attempts . | . . . . . . Triggered . | . . . . . . Disarmed . | . . . . . . Reprogrammed . | . . . . . . Reused . | . . . . . . Traps Extracted . | . . . . . . Installed . | . . . . . . Triggered . | . . . . . . Machines | -11 -10 -9 -9 -9 -8 ---------- Run | Yrd Mat Mat Min Exi Min Machines Disabled 1 | . . . . 1 . Max in Single Turn 1 | . . . . 1 . Machines Repaired . | . . . . . . Machines Dismantled . | . . . . . . Machines Sabotaged . | . . . . . . Overloaded Fab Kills . | . . . . . . Hacking | -11 -10 -9 -9 -9 -8 --------- Run | Yrd Mat Mat Min Exi Min Machines Accessed 1 | . . 1 . . . Terminals 1 | . . 1 . . . Fabricators . | . . . . . . Repair Stations . | . . . . . . Recycling Units . | . . . . . . Scanalyzers . | . . . . . . Garrison Access . | . . . . . . Total Hacks 3 | . . 3 . . . Successful 1 | . . 1 . . . Failed 2 | . . 2 . . . Catastrophic . | . . . . . . Database Lockouts . | . . . . . . Manual 4 | . . 3 . 1 . Terminals 3 | . . 3 . . . Fabricators . | . . . . . . Repair Stations . | . . . . . . Recycling Units . | . . . . . . Scanalyzers . | . . . . . . Garrison Access . | . . . . . . Terminal Hacks 1 | . . 1 . . . Branch Access Points 1 | . . 1 . . . Fabricator Hacks . | . . . . . . Repair Station Hacks . | . . . . . . Recycling Unit Hacks . | . . . . . . Scanalyzer . | . . . . . . Garrison Access Hacks . | . . . . . . Unauthorized Hacks . | . . . . . . Terminals . | . . . . . . Fabricators . | . . . . . . Repair Stations . | . . . . . . Recycling Units . | . . . . . . Scanalyzers . | . . . . . . Garrison Access . | . . . . . . Data Cores Recovered . | . . . . . . Used . | . . . . . . Hacking Detections 1 | . . 1 . . . Full Trace Events 1 | . . 1 . . . Feedback Events . | . . . . . . Feedback Blocked . | . . . . . . Robot Schematics Acquired . | . . . . . . Robots Built . | . . . . . . Authchips . | . . . . . . Time . | . . . . . . Total Robot Build Rating . | . . . . . . Part Schematics Acquired . | . . . . . . Parts Built . | . . . . . . Authchips . | . . . . . . Time . | . . . . . . Total Part Build Rating . | . . . . . . Part Studies Acquired . | . . . . . . Parts Repaired . | . . . . . . Time . | . . . . . . Parts Recycled . | . . . . . . Recycled Matter . | . . . . . . Retrieved Matter . | . . . . . . Retrieved Components . | . . . . . . Parts Scanalyzed . | . . . . . . Part Schematics Acquired . | . . . . . . Parts Damaged . | . . . . . . Bothacking | -11 -10 -9 -9 -9 -8 ------------ Run | Yrd Mat Mat Min Exi Min Used RIF Installer . | . . . . . . Robots Hacked . | . . . . . . Non-combat . | . . . . . . Combat . | . . . . . . Robot Hacks Applied . | . . . . . . Relay Couplers Released . | . . . . . . Fabnet Peak Effective % . | . . . . . . Robots Rewired . | . . . . . . Allies Hacked . | . . . . . . Hacks Repelled . | . . . . . . Allies | -11 -10 -9 -9 -9 -8 -------- Run | Yrd Mat Mat Min Exi Min Total Allies 2 | . . . 2 . . Largest Group 2 | . . . 2 2 . Highest-Rated Group 43 | . . . 43 43 . Highest-Rated Ally 31 | . . . 31 31 . Total Orders . | . . . . . . Ally Attacks . | . . . . . . Total Damage . | . . . . . . Kills . | . . . . . . Allies Corrupted . | . . . . . . Allies Melted . | . . . . . . Intel | -11 -10 -9 -9 -9 -8 ------- Run | Yrd Mat Mat Min Exi Min Active Infowar (turns) 440 | . 9 73 262 96 . Structural 440 | . 9 73 262 96 . Robot Analysis Total . | . . . . . . Derelict Logs Recovered 1 | . . . 1 . . Drone Launches . | . . . . . . Drone Recoveries . | . . . . . . Exploration | -11 -10 -9 -9 -9 -8 ------------- Run | Yrd Mat Mat Min Exi Min Turns Passed 538 | 10 78 73 262 114 1 Spaces Moved 840 | 20 153 146 302 218 1 Core 737 | 20 153 146 302 116 . Treads . | . . . . . . Legs . | . . . . . . Wheels . | . . . . . . Hover . | . . . . . . Flight 103 | . . . . 102 1 Fastest Speed 50 | 50 50 50 50 50 50 Average Speed 50 | 50 50 50 50 50 50 Slowest Speed 50 | 50 50 50 50 50 50 Overloaded Moves . | . . . . . . Propulsion Burnouts . | . . . . . . Robots Hopped . | . . . . . . Potential Cave-ins . | . . . . . . Cave-ins Triggered . | . . . . . . Exploration Rate (%) 31 | 3 21 27 69 62 4 Regions Visited 5 Branch Regions 3 Pre-discovered Areas . | . . . . . . Known Exits Taken 1 | . . 1 . . . Unknown Exits Taken 4 | 1 1 . 1 1 . Scrap Searched 3 | . . . 3 . . Spaces Dug . | . . . . . . Terrain Destroyed . | . . . . . . Melee . | . . . . . . Projectile . | . . . . . . AOE . | . . . . . . Terrain Rammed 1 | . . . . 1 . Walls Destroyed . | . . . . . . Machines Disabled 1 | . . . . 1 . Actions | -11 -10 -9 -9 -9 -8 --------- Run | Yrd Mat Mat Min Exi Min Total 949 | 19 153 145 410 221 1 Wait 103 | . . . 103 . . Move 835 | 19 152 145 301 217 1 Hop . | . . . . . . Pick Up . | . . . . . . Fast Attach 4 | . 1 . 1 2 . Attach . | . . . . . . Detach . | . . . . . . Swap . | . . . . . . Drop 1 | . . . . 1 . Fire 2 | . . . 2 . . Melee . | . . . . . . Ram 2 | . . . 1 1 . Kick . | . . . . . . Crush . | . . . . . . Escape Stasis . | . . . . . . Rewire . | . . . . . . Trap . | . . . . . . Miscellaneous 2 | . . . 2 . . Route ------- -11/Scrapyard -10/Materials -9/Materials -9/Mines (discovered 3 exits: [*Mat x2] / *Exi) -9/Exiles -8/Mines History --------- Turn | Location | Event 3 | -11/Scrapyard | Discovered new exit (range 15) 11 | -11/Scrapyard | Entered Materials 87 | -10/Materials | Discovered new exit (range 3) 89 | -10/Materials | Entered another Materials area 91 | -9/Materials | Reached level 2 95 | -9/Materials | Identified exit to Mines 162 | -9/Materials | Entered Mines 173 | -9/Mines | Learned 2 Materials zone layouts 187 | -9/Mines | Discovered new exit (range 6) 207 | -9/Mines | Discovered new exit (range 12) 234 | -9/Mines | Assembled infested the area 259 | -9/Mines | Met 8R-AWN 305 | -9/Mines | Build established: Mutant 404 | -9/Mines | Discovered new exit (range 6) 424 | -9/Mines | Entered Exiles 424 | -9/Exiles | Accompanied by 2 allies 437 | -9/Exiles | Welcomed by 8R-AWN 445 | -9/Exiles | Met EX-HEX 454 | -9/Exiles | Led the pair of lost Derelicts to a safe place 459 | -9/Exiles | Met EX-BIN 466 | -9/Exiles | Aligned with FarCom system 467 | -9/Exiles | Given EX-Vault access code 480 | -9/Exiles | Opened EX-Vault 482 | -9/Exiles | Upgraded with Propulsion slot (x3) 483 | -9/Exiles | Found Prototype Flight Unit 483 | -9/Exiles | Identified Flying Fortress v7 486 | -9/Exiles | Upgraded with Weapon slot (x1) 488 | -9/Exiles | Found Prototype Ballistic Gun 488 | -9/Exiles | Identified AWS/Gauss 499 | -9/Exiles | Warned to stay clear of 0b10 Research branches 516 | -9/Exiles | Met EX-DEC 521 | -9/Exiles | Attacked by the Exiles 534 | -9/Exiles | Discovered new exit (range 10) 538 | -9/Exiles | Stole two prototypes: Flying Fortress v7, AWS/Gauss 538 | -9/Exiles | Entered Mines 539 | -8/Mines | Self-destructed Last Messages --------------- 00488_ Identified AWS/Gauss. EX-BIN: Oh yeah, I'd suggest you stay away from the 0b10 Research branches, since the FarCom signals could be picked up there, but you're welcome to try if you really want to. And if we have to leave here due to unforeseen circumstances, don't worry the FarCom system will continue to maintain contact via our distributed network. EX-DEC: Ah I see we have a visitor. One wrong move in here and I'll invert your atomic chain! 00518_ EX-DEC: "Oops, I hope HEX didn't hear that..." 00520_ Slammed into Machine. 00520_ Machine disabled. 00520_ Destabilizing: System interference. 00520_ Structural Scanner temporarily disabled. 00520_ Destabilizing: System corrupted (+2). 00521_ EXILES: Hostile robot within lab perimeter. Defensive protocols time, folks! 00534_ EXIT=FOUND LOCATION=UNKNOWN GOAL=ESCAPE Map ----- +----------------------------------------------------+ | ?????????????????????????????????????????????????? | | ?????????????????????????????????????????????????? | | ?????????????????????????????????????????????????? | | ?????????????????????????????????????????????????? | | ?????????????????????????????????????????????????? | | ?????????????????????????????????????????????????? | | ?????????????????????????????????????????????????? | | ?????????????????????????????????????????????????? | | ?????????????????????????????????????????????????? | | ?????????????????????????????????????????????????? | | ?????????????????????????????????????????????????? | | ?????????????????????????????????????????????????? | | ?????????????????????????????????????????????????? | | ?????????????????????????????????????????????????? | | ?????????????????????????????????????????????????? | | ?????????????????????????????????????????????????? | | ?????????????????????????????????????????????????? | | ?????????????????????????????????????????????????? | | ?????????????????????????????????????????????????? | | ?????????????????????????????????????????????????? | | ?????????????????????????????????????????????????? | | ?????????????????????????????????????????????????? | | ???????????????????????####????? #???????????????? | | ??????????????????????## #### g ##??????????????? | | ?????????????????????## g#??????????????? | | ?????????????????????# @ #?????????????? | | ?????????????????????# g#?????????????? | | ?????????????????????## ##?????????????? | | ??????????????????????# ######??????????????? | | ??????????????????????## #???????????????????? | | ???????????????????????#### ???????????????????? | | ??????????????????????????? ##??????????????????? | | ??????????????????????????? #???????????????????? | | ??????????????????????????? #???????????????????? | | ????????????????????????????##???????????????????? | | ?????????????????????????????????????????????????? | | ?????????????????????????????????????????????????? | | ?????????????????????????????????????????????????? | | ?????????????????????????????????????????????????? | | ?????????????????????????????????????????????????? | | ?????????????????????????????????????????????????? | | ?????????????????????????????????????????????????? | | ?????????????????????????????????????????????????? | | ?????????????????????????????????????????????????? | | ?????????????????????????????????????????????????? | | ?????????????????????????????????????????????????? | | ?????????????????????????????????????????????????? | | ?????????????????????????????????????????????????? | | | | | +----------------------------------------------------+ Best States ------------- Heat Dissipation 25 Energy Generation 5 Energy Capacity 100 Matter Stores 300 Matter Capacity 300 Sight Range 16 Terrain Scan Density 10 Evasion (%) 60 Item Schematics ----------------- None Robot Schematics ------------------ None Fabricated ------------ Nothing Repaired ---------- Nothing Studied --------- None Alien Tech Used ----------------- None Achievements -------------- None Challenges ------------ None RPGLIKE | -11 -10 -9 -9 -9 -8 --------- Run | Yrd Mat Mat Min Exi Min Levels Raised 1 | . . 1 . . . XP Earned 5490 | 3000 100 1540 500 350 . XP Spent 2900 | . . . . 2900 . Upgrades 4 | . . . . 4 . Propulsion Slot 3 | . . . . 3 . Weapon Slot 1 | . . . . 1 . Protomatter Created . | . . . . . . Integrity Restored 30 | . . . 30 . . Core 30 | . . . 30 . . Protomatter Decayed 68 | . . . 25 43 . Game ------ Seed DronePhasingFlail Manual? 0 Play Time 00:04:03 Cumulative 663.0 hours Start 2026.07.15 @ 06:15:00 End 2026.07.15 @ 06:19:03 Sessions 1 Manual Loads 0 Difficulty Rogue Special Mode Winter2019/RPGLIKE Game No. 298 Rogue 144 Adventurer 154 Explorer 0 Win Type - Total 22 Types 4/5/4/3/2/1/0/1/1/1 Lore% 95 Gallery% 88 Achievement% 68 Wizard Run 0 Options --------- Layout 0 ASCII 0 Keyboard 0 Movement Numpad Keybinds 0 Fullscreen 2 Font 18/SmallcapsGlow Map View 76x50 Zoom Use 0% Tactical HUD 1 Map Filters NONE Filters NONE Steam 1 RUN: eda0aa6d-5a1d-4893-b969-2d9e98be0566